Cogmind - Beta 14 @@@ ROGUE MODE // 2025.01.15 @ 15:51:30 Player: hoganstuff Result: Self-destructed Performance ------------- Evolutions (2) 1000 Regions Visited (4) 800 Robots Destroyed (61) 305 Value Destroyed (1608) 1608 Prototype IDs (2) 40 Alien Tech Used (0) 0 Bonus (111) 111 TOTAL SCORE: 3864 Bonus ------- High Alert Combat Kills 111 Cogmind --------- Core Integrity 550/550 Matter 280/300 Energy 280/280 System Corruption 0% Temperature Cool (0) Movement Treading (167) Location -8/Materials Parts ------- > --- POWER (1) -------- Cooled Ion Engine > --- PROPULSION (4) --- Improved Treads Armored Treads Armored Treads Armored Treads > --- UTILITY (3) ------ Large Storage Unit Improved Targeting Computer Improved Propulsion Shielding > --- WEAPON (3) ------- Heavy EM Pulse Gun Particle Gun Assault Cannon > --- INVENTORY (15) --- Cooled Ion Engine Improved Treads Improved Treads Improved Treads Cooling System Experimental Sensor Array Medium Armor Plating Heavy EM Pulse Gun Beam Rifle Assault Cannon Rocket Launcher Rocket Launcher Peak State ------------ > --- POWER ------------ Cooled Ion Engine > --- PROPULSION ------- Armored Treads Armored Treads Armored Treads Armored Treads > --- UTILITY ---------- Experimental Sensor Array Improved Targeting Computer > --- WEAPON ----------- Heavy EM Pulse Gun Light EM Pulse Cannon > --- INVENTORY -------- Cooling System EM Shotgun Particle Gun Assault Cannon Assault Cannon [Rating: 31] Favorites ----------- Power Cooled Ion Engine Engine Cooled Ion Engine Propulsion Armored Treads Treads Armored Treads Leg Aluminum Leg Utility Improved Targeting Computer Device Cooling System Storage Large Storage Unit Processor Improved Targeting Computer Protection Medium Armor Plating Weapon Heavy EM Pulse Gun Energy Gun Heavy EM Pulse Gun Energy Cannon Light EM Pulse Cannon Ballistic Gun Assault Rifle Ballistic Cannon Assault Cannon Build | -11 -10 -9 -9 -8 ------- Run | Yrd Mat Mat Min Mat Slots Evolved 4 | . . 2 . 2 Power . | . . . . . Propulsion 2 | . . 2 . . Utility 1 | . . . . 1 Weapon 1 | . . . . 1 Parts Attached 39 | 7 5 18 2 7 Power 5 | 2 . 3 . . Engine 5 | 2 . 3 . . Core . | . . . . . Reactor . | . . . . . Propulsion 11 | 2 1 7 . 1 Treads 5 | . . 4 . 1 Leg 6 | 2 1 3 . . Wheel . | . . . . . Hover . | . . . . . Flight . | . . . . . Utility 10 | 1 2 2 2 3 Device 2 | . . . 1 1 Storage 3 | 1 . 1 1 . Processor 1 | . . 1 . . Hackware . | . . . . . Protection 4 | . 2 . . 2 Artifact . | . . . . . Weapon 13 | 2 2 6 . 3 Energy Gun 9 | . 2 5 . 2 Energy Cannon 1 | . . 1 . . Ballistic Gun 2 | 2 . . . . Ballistic Cannon 1 | . . . . 1 Launcher . | . . . . . Special Weapon . | . . . . . Impact Weapon . | . . . . . Slashing Weapon . | . . . . . Piercing Weapon . | . . . . . Special Melee Weapon . | . . . . . Unidentified Prototypes 1 | . . . 1 . Parts Lost 5 | . 2 1 . 2 Power 1 | . 1 . . . Propulsion . | . . . . . Utility . | . . . . . Weapon 4 | . 1 1 . 2 Highest Loss Streak 2 | . 2 1 . 1 To Critical Strikes . | . . . . . Average Slot Usage (%) 98 | . 95 97 100 97 Engine 11 | . 13 11 11 9 Treads 34 | . . 35 44 36 Leg 6 | . 25 6 . . Storage 11 | . 14 11 11 9 Processor 8 | . . 10 11 9 Protection 2 | . 12 . . 6 Energy Gun 13 | . 7 18 11 12 Energy Cannon 6 | . . 2 11 7 Ballistic Gun 2 | . 19 . . . Peak Build Rating 31 | 6 11 25 31 31 Average Rating 21 | 4 7 20 25 29 On Entrance 13 | . 6 8 25 26 Naked Turns . | . . . . . Heaviest Build 47 | 12 21 35 35 47 Greatest Support 83 | 20 20 80 80 83 Greatest Overweight (x) 3 | 3 1 . . . Average Overweight (x) . | . . . . . Largest Inventory Capacity 15 | 8 8 15 15 15 Average Capacity 12 | 7 8 10 14 15 Most Carried 15 | 3 8 15 15 14 Average Carried 11 | 1 4 9 14 12 Final Capacity 15 | 8 8 15 15 15 Final Carried 15 | 2 8 15 15 12 Class Distribution -------------------- 92% | Mutant 7% | Gunner Dominant Class ---------------- Mutant | -10/Materials Mutant | -9/Materials Mutant | -9/Mines Gunner | -8/Materials Resources | -11 -10 -9 -9 -8 ----------- Run | Yrd Mat Mat Min Mat Matter Collected 670 | 262 120 168 20 100 Remotely . | . . . . . Salvage Created 2444 | . 335 1469 269 371 Parts 131 | . 17 81 13 20 Haulers Intercepted 4 | . . 4 . . Recyclers Shooed 5 | . . 3 1 1 Parts Field Recycled . | . . . . . Retrieved Matter . | . . . . . Parts Self-Destructed . | . . . . . Prevented . | . . . . . Kills | -11 -10 -9 -9 -8 ------- Run | Yrd Mat Mat Min Mat Combat Hostiles Destroyed 44 | . 6 21 8 9 Guns 31 | . 6 19 3 3 Cannons 8 | . . . 5 3 AOE 3 | . . 1 . 2 Classes Destroyed 7 | . 2 5 . . Builder 2 | . . 2 . . Hauler 4 | . . 4 . . Recycler 3 | . . 3 . . Watcher 8 | . 3 5 . . Swarmer 11 | . . 4 4 3 Grunt 28 | . 6 13 4 5 Sentry 5 | . . 4 . 1 Best Kill Streak 12 | . 3 12 3 4 Combat Bots Only 6 | . 2 6 3 4 Max Kills in Single Turn 2 | . 1 2 1 2 Gunslinging . | . . . . . Exploded 2 | . . 1 . 2 Melee . | . . . . . Uniques/NPCs Destroyed . | . . . . . Combat | -11 -10 -9 -9 -8 -------- Run | Yrd Mat Mat Min Mat Hostile Shots Fired 202 | . 39 73 40 50 Missed 62 | . 8 32 9 13 Damage Taken 1913 | . 411 597 339 566 Core 204 | . 104 89 11 . Absorbed by Shields . | . . . . . Redirected to Shielding 46 | . . . . 46 Core Remaining (%) 77 | 100 58 . 75 . Volleys Fired 129 | . 31 60 18 20 Largest 3 | . 2 2 2 3 Hottest 154 | . 90 101 101 154 Shots Fired 275 | . 62 119 36 58 Gun 223 | . 62 114 18 29 Cannon 52 | . . 5 18 29 Launcher . | . . . . . Special . | . . . . . Kinetic 53 | . 42 . . 11 Thermal 2 | . . . . 2 Explosive . | . . . . . Electromagnetic 220 | . 20 119 36 45 Robot Hit Streak 20 | . 7 20 10 8 Robot Miss Streak 6 | . 5 6 4 4 Penetration Max . | . . . . . Secondary Targets 2 | . . 2 . . Max Gunslinging Chain 1 | . . 1 . . Shots Hit Robots 179 | . 38 84 25 32 Core Hits 102 | . 20 57 11 14 Critical Kills . | . . . . . Critical Parts Destroyed . | . . . . . Critical Strikes 3 | . . 1 1 1 Corrupt 3 | . . 1 1 1 Melee Attacks . | . . . . . Impact . | . . . . . Slashing . | . . . . . Piercing . | . . . . . Sneak Attacks . | . . . . . Combat Hostiles . | . . . . . Follow-up Attacks . | . . . . . Damage Inflicted 3334 | . 495 1618 459 762 Guns 2199 | . 473 1303 175 248 Cannons 708 | . . 70 267 371 Explosions 381 | . . 239 . 142 Melee . | . . . . . Ramming 46 | . 22 6 17 1 Kinetic 322 | . 222 . . 100 Thermal 396 | . . 239 . 157 Explosive . | . . . . . Electromagnetic 2570 | . 251 1373 442 504 Impact . | . . . . . Slashing . | . . . . . Piercing . | . . . . . Highest Corruption . | . . . . . Average Corruption . | . . . . . Corruption Purged . | . . . . . Corruption Blocked . | . . . . . Overload Shots . | . . . . . Overflow Damage 71 | . . 46 . 25 Projectiles . | . . . . . Explosions 71 | . . 46 . 25 Melee . | . . . . . Knockbacks 1 | . . . . 1 Impact . | . . . . . Kinetic 1 | . . . . 1 Secondary . | . . . . . Self-Inflicted Damage 109 | . . 57 . 52 Shots 3 | . . 2 . 1 Rammed 5 | . . . 4 1 Targets Rammed 10 | . 3 2 4 1 Kicked 5 | . 3 2 . . Crushed . | . . . . . Highest Temperature 461 | . 461 132 192 207 Average Temperature 63 | . 107 40 72 75 Received Heat Transfer 864 | . 231 252 138 243 Effects 2 | . 2 . . . Shutdowns 1 | . 1 . . . Damage (minor) 1 | . 1 . . . Siege Activations . | . . . . . Robots Corrupted 2 | . . 1 . 1 Combat Hostiles 2 | . . 1 . 1 Parts Fried 13 | . 2 6 1 4 Impact Corruptions . | . . . . . Robots Melted . | . . . . . Combat Hostiles . | . . . . . Parts Melted . | . . . . . Heat Transferred 387 | . . 250 . 137 Parts Sabotaged . | . . . . . Parts Stolen . | . . . . . Parts Stripped . | . . . . . Power Chain Reactions 6 | . . 5 . 1 Alert | -11 -10 -9 -9 -8 ------- Run | Yrd Mat Mat Min Mat Peak Influence 618 | . 257 618 355 358 Initial 180 | . . 100 180 21 Average 263 | . 125 435 180 180 Maximum Alert Level 2 | . 1 2 1 1 Low Security (%) 47 | 100 64 10 72 53 Level 1 27 | . 35 21 27 46 Level 2 25 | . . 68 . . Level 3 . | . . . . . Level 4 . | . . . . . Level 5 . | . . . . . High Security . | . . . . . Max Security . | . . . . . Squads Dispatched 9 | . 1 5 . 3 Investigation 4 | . 1 3 . . Extermination . | . . . . . Reinforcement 4 | . . 2 . 2 Assault . | . . . . . Garrison 1 | . . . . 1 Intercept . | . . . . . Searches Triggered . | . . . . . Construction Impeded 1 | . . 1 . . Haulers Reinforced . | . . . . . Active Scanning Responses . | . . . . . Cargo Convoy Interrupts . | . . . . . Stealth | -11 -10 -9 -9 -8 --------- Run | Yrd Mat Mat Min Mat Distress Signals 4 | . 1 3 . . Communications Jammed . | . . . . . Distress Signals . | . . . . . Times Spotted 81 | . 18 35 10 18 Peak Tracking Total 7 | . 4 7 4 4 Tactical Retreats 10 | . 3 2 1 4 Traps | -11 -10 -9 -9 -8 ------- Run | Yrd Mat Mat Min Mat Traps Triggered 3 | . 2 1 . . Indirectly . | . . . . . Trap Hack Attempts . | . . . . . Triggered . | . . . . . Disarmed . | . . . . . Reprogrammed . | . . . . . Reused . | . . . . . Traps Extracted . | . . . . . Installed . | . . . . . Triggered . | . . . . . Machines | -11 -10 -9 -9 -8 ---------- Run | Yrd Mat Mat Min Mat Machines Disabled 4 | . . 4 . . Max in Single Turn 2 | . . 2 . . Machines Repaired . | . . . . . Machines Dismantled . | . . . . . Machines Sabotaged . | . . . . . Overloaded Fab Kills . | . . . . . Hacking | -11 -10 -9 -9 -8 --------- Run | Yrd Mat Mat Min Mat Machines Accessed 9 | . 2 5 . 2 Terminals 6 | . 2 3 . 1 Fabricators . | . . . . . Repair Stations . | . . . . . Recycling Units . | . . . . . Scanalyzers 2 | . . 2 . . Garrison Access 1 | . . . . 1 Total Hacks 31 | . 7 20 . 4 Successful 16 | . 4 11 . 1 Failed 15 | . 3 9 . 3 Catastrophic 4 | . 1 1 . 2 Database Lockouts . | . . . . . Manual 21 | . 7 12 . 2 Terminals 20 | . 7 11 . 2 Fabricators . | . . . . . Repair Stations . | . . . . . Recycling Units . | . . . . . Scanalyzers 9 | . . 9 . . Garrison Access 2 | . . . . 2 Terminal Hacks 3 | . 2 1 . . Branch Access Points 1 | . 1 . . . Terminal Index 1 | . 1 . . . Unreport Threat 1 | . . 1 . . Fabricator Hacks . | . . . . . Repair Station Hacks . | . . . . . Recycling Unit Hacks . | . . . . . Scanalyzer 6 | . . 6 . . Insert Component 3 | . . 3 . . Analyze 3 | . . 3 . . Garrison Access Hacks . | . . . . . Unauthorized Hacks 7 | . 2 4 . 1 Terminals 6 | . 2 3 . 1 Botnet 6 | . 2 3 . 1 Fabricators . | . . . . . Repair Stations . | . . . . . Recycling Units . | . . . . . Scanalyzers 1 | . . 1 . . Extract 1 | . . 1 . . Garrison Access . | . . . . . Data Cores Recovered . | . . . . . Used . | . . . . . Hacking Detections 9 | . 2 5 . 2 Full Trace Events 1 | . . 1 . . Feedback Events . | . . . . . Feedback Blocked . | . . . . . Robot Schematics Acquired . | . . . . . Robots Built . | . . . . . Authchips . | . . . . . Time . | . . . . . Total Robot Build Rating . | . . . . . Part Schematics Acquired 4 | . . 4 . . Parts Built . | . . . . . Authchips . | . . . . . Time . | . . . . . Total Part Build Rating . | . . . . . Parts Repaired . | . . . . . Time . | . . . . . Parts Recycled . | . . . . . Recycled Matter . | . . . . . Retrieved Matter . | . . . . . Retrieved Components . | . . . . . Parts Scanalyzed 3 | . . 3 . . Part Schematics Acquired 3 | . . 3 . . Parts Damaged . | . . . . . Bothacking | -11 -10 -9 -9 -8 ------------ Run | Yrd Mat Mat Min Mat Used RIF Installer . | . . . . . Robots Hacked . | . . . . . Non-combat . | . . . . . Combat . | . . . . . Robot Hacks Applied . | . . . . . Relay Couplers Released . | . . . . . Fabnet Peak Effective % . | . . . . . Robots Rewired . | . . . . . Allies Hacked . | . . . . . Hacks Repelled . | . . . . . Allies | -11 -10 -9 -9 -8 -------- Run | Yrd Mat Mat Min Mat Total Allies . | . . . . . Largest Group . | . . . . . Highest-Rated Group . | . . . . . Highest-Rated Ally . | . . . . . Total Orders . | . . . . . Ally Attacks . | . . . . . Total Damage . | . . . . . Kills . | . . . . . Allies Corrupted . | . . . . . Allies Melted . | . . . . . Intel | -11 -10 -9 -9 -8 ------- Run | Yrd Mat Mat Min Mat Robot Analysis Total . | . . . . . Derelict Logs Recovered 2 | . . . 2 . Drone Launches . | . . . . . Drone Recoveries . | . . . . . Exploration | -11 -10 -9 -9 -8 ------------- Run | Yrd Mat Mat Min Mat Turns Passed 2504 | 54 326 925 930 269 Spaces Moved 1199 | 33 151 418 495 102 Core 9 | 9 . . . . Treads 929 | . . 332 495 102 Legs 261 | 24 151 86 . . Wheels . | . . . . . Hover . | . . . . . Flight . | . . . . . Fastest Speed 50 | 50 120 120 170 167 Average Speed 160 | 127 136 159 170 169 Slowest Speed 200 | 200 190 170 170 170 Overloaded Moves . | . . . . . Propulsion Burnouts . | . . . . . Robots Hopped . | . . . . . Cave-ins Triggered . | . . . . . Exploration Rate (%) 35 | 4 28 39 85 21 Regions Visited 4 Branch Regions 1 Pre-discovered Areas 1 | . . . 1 . Known Exits Taken . | . . . . . Unknown Exits Taken 4 | 1 1 1 1 . Scrap Searched 3 | . . . 3 . Spaces Dug . | . . . . . Terrain Destroyed 20 | . . 9 . 11 Melee . | . . . . . Projectile 5 | . . . . 5 AOE 15 | . . 9 . 6 Terrain Rammed . | . . . . . Walls Destroyed . | . . . . . Machines Disabled . | . . . . . Actions | -11 -10 -9 -9 -8 --------- Run | Yrd Mat Mat Min Mat Total 1506 | 42 211 557 545 151 Wait 76 | . 12 31 13 20 Move 1195 | 32 150 417 494 102 Hop . | . . . . . Pick Up 40 | 3 8 17 11 1 Fast Attach 9 | 5 1 1 2 . Attach 11 | 1 1 5 . 4 Detach 1 | . . 1 . . Swap 19 | 1 3 12 . 3 Drop 16 | . 2 11 3 . Fire 129 | . 31 60 18 20 Melee . | . . . . . Ram . | . . . . . Kick 5 | . 3 2 . . Crush 5 | . . . 4 1 Escape Stasis . | . . . . . Rewire . | . . . . . Trap . | . . . . . Miscellaneous . | . . . . . Route ------- -11/Scrapyard -10/Materials (discovered 2 exits: *Mat / Min) -9/Materials (discovered 2 exits: *Mat / [*Min]) -9/Mines -8/Materials History --------- Turn | Location | Event 29 | -11/Scrapyard | Discovered new exit (range 15) 55 | -11/Scrapyard | Entered Materials 91 | -10/Materials | Identified exit to Mines 314 | -10/Materials | Build established: Mutant 320 | -10/Materials | Discovered new exit (range 16) 381 | -10/Materials | Entered another Materials area 381 | -9/Materials | Evolved 2 slots: Propulsion x2 1026 | -9/Materials | Discovered new exit (range 7) 1220 | -9/Materials | Discovered new exit (range 8) 1306 | -9/Materials | Entered Mines 1361 | -9/Mines | Met a Derelict bent on vengeance 1519 | -9/Mines | Discovered new exit (range 7) 1676 | -9/Mines | Learned location of 1 exit from Lower Caves 1707 | -9/Mines | Found a damaged Exp. Sensor Array with a note attached 1711 | -9/Mines | Found Prototype Device 1711 | -9/Mines | Identified Exp. Sensor Array 1927 | -9/Mines | YI-UF0 nonchalantly dropped a Grenade Launcher on the ground 2025 | -9/Mines | Found a hidden stash of uninstalled traps 2236 | -9/Mines | Entered Materials 2236 | -8/Materials | Evolved 2 slots: Utility x1, Weapon x1 2266 | -8/Materials | Garrison activated, responded to threat 2505 | -8/Materials | Self-destructed Last Messages --------------- Awaiting botnet instructions. 02419_ Acquired 6 matter. 02422_ Acquired Imp. Treads. 02425_ Acquired 55 matter. 02443_ G-50 Soldier knocked back. 02456_ G-47 Trooper system terminally corrupted. 02456_ Lgt. Nuclear Core fried. 02456_ Particle Gun fried. 02459_ Acquired 39 matter. 02459_ R-06 Scavenger collects Corrupted Imp. Heat Sink. 02460_ Slammed into R-06 Scavenger. 02461_ Lgt. EM Pulse Cannon destroyed. 02492_ O-16 Technician: "IFF HANDSHAKE FAILED. SECURING TERMINAL." 02494_ O-16 Technician uses terminal to summon reinforcements. 02494_ ALERT: Hostiles spotted, dispatching reinforcements to Terminal M005. 02494_ O-16 Technician locks terminal. Map ----- +----------------------------------------------------+ | ???????????????????????# + !#????? | | ???????????????????????# # !#????? | | ???????????????????????# # !#????? | | ???????????????????????# ?# !##????? | | ???????????????????????############## ####?????? | | ?????????????????????????????# # #????????? | | ?????????????????????????????# # #????????? | | ?????????????????????????????# + +????????? | | ?????????????????????????????+ # #????????? | | ?????????????????????????????# =*= # #????????? | | ?????????????????????????????# %=%*# #????????? | | ?????????????????????????????##"#/%## #????????? | | ??????????????????????????????##"=### #????????? | | ???????????????????????????????##=#?# #????????? | | ????????????????????????????????# #?# #????????? | | ?????????????????????????##???### #?# #????????? | | ????????????????????#####;##?## #+### #????????? | | ??????????????????###; #?#=! # #????????? | | ??????????????????? #?# ! =# #????????? | | ???????????????????? ??# # #????????? | | ????????????????????? ??# "T" # #????????? | | ?????????????????????? ??# """ =% % #????????? | | ??????????????????????# #??# #% #????????? | | ??????????????#########o #??######## % #????????? | | ??????????????# ! / T # #?????????# #????????? | | ????????????????? + @#?????????# #????????? | | ??????????????????????# #?????????# #????????? | | ??????????????????????# #?????????# #????????? | | ??????????????????????# g########### #????????? | | ??????????????????????# #????????? | | ??????????????????#!! g #????????? | | ??????????????????#!! #????????? | | ??????????????????#!! ####### ####????????? | | ??????????????????#!! ??????# #???????????? | | ??????????????????#== ??????#!!==!!#???????????? | | ??????????????????#== ??????#!!==!!#???????????? | | ??????????????????##### ??????########???????????? | | ?????????????????????? ?????????????????????????? | | ?????????????????????? ?????????????????????????? | | ?????????????????????? ??????????????????????????? | | ?????????????????????? ??????????????????????????? | | ?????????????????????? ??????????????????????????? | | ?????????????????????? ??????????????????????????? | | ?????????????????????????????????????????????????? | | ?????????????????????????????????????????????????? | | ?????????????????????????????????????????????????? | | ?????????????????????????????????????????????????? | | ?????????????????????????????????????????????????? | | ?????????????????????????????????????????????????? | | ?????????????????????????????????????????????????? | +----------------------------------------------------+ Best States ------------- Heat Dissipation 53 Energy Generation 14 Energy Capacity 280 Matter Stores 300 Matter Capacity 300 Sight Range 16 Terrain Scan Density 10 Armor Coverage 225 Propulsion Shielding 66 Evasion (%) 55 Targeting Accuracy 6 Recoil Reduction 4 Item Schematics ----------------- EM Shotgun | -9/Materials | Scanalyzed Med. Armor Plating | -9/Materials | Scanalyzed Hcp. Storage Unit | -9/Materials | Extracted Cld. Ion Engine | -9/Materials | Scanalyzed Robot Schematics ------------------ None Fabricated ------------ Nothing Alien Tech Used ----------------- None Achievements -------------- Safety First Challenges ------------ None Game ------ Seed TrapFlightRecalibrator Manual? 0 Play Time 00:27:45 Cumulative 45.3 hours Start 2025.01.14 @ 00:09:34 End 2025.01.15 @ 15:51:30 Sessions 3 Manual Loads 0 Difficulty Rogue Special Mode None Game No. 39 Rogue 33 Adventurer 6 Explorer 0 Win Type - Total 0 Types 0/0/0/0/0/0/0/0/0 Lore% 21 Gallery% 33 Achievement% 30 Wizard Run 0 Options --------- Layout 1 ASCII 0 Keyboard 0 Movement Arrows Keybinds 0 Fullscreen 2 Font 24/Smallcaps Map View 50x35 Zoom Use 0% Tactical HUD 1 Map Filters NONE Filters NONE Steam 1 RUN: 506ea172-c015-429f-869b-406ac9a8e440